[Event "Czech Open-Rapid 2022"]
[Site "Pardubice"]
[Date "2022.07.21"]
[Round "4.12"]
[White "Akesson, Ralf"]
[Black "Silar, Lubomir"]
[Result "1-0"]
[ECO "E08"]
[WhiteElo "2427"]
[BlackElo "1993"]
[Annotator "TA"]
[PlyCount "81"]
[EventDate "2022.07.20"]
[EventType "swiss"]
[EventCountry "CZE"]
[SourceTitle "playchess.com"]
[Source "ChessBase"]
[SourceQuality "1"]
[TimeControl "1200+10"]

{[%evp 15,81,28,33,23,20,19,37,18,44,35,56,69,54,55,112,118,162,77,67,71,63,62,58,15,15,23,64,40,147,147,169,171,173,173,166,164,167,154,233,154,173,166,195,172,368,368,368,368,354,363,442,368,581,572,527,368,342,342,631,342,848,658,2244,2095,29973,29974,6122,2126]} 1. Nf3 {[%emt 0:00:43]} d5 {[%emt 0:00:04]} 2. d4 {[%emt 0:00:04]} Nf6 {[%emt 0:00:07]} 3. c4 {[%emt 0:00:02]} e6 {[%emt 0:00:45]} 4. g3 {[%emt 0:00:05]} Be7 {[%emt 0:00:39]} 5. Bg2 {[%emt 0:00:04]} Nbd7 {[%emt 0:00:17]} 6. Qc2 {[%emt 0:00:12]} O-O {[%emt 0:00:31]} 7. O-O {[%emt 0:00:03]} c5 {[%emt 0:00:59]} 8. cxd5 {[%emt 0:00:41]} Nxd5 {[%emt 0:00:16]} 9. a3 {[%emt 0:00:41] E08: Closed Catalan: Main Line: 7 Qc2.} cxd4 {[%emt 0:02:01]} 10. Nxd4 {[%emt 0:00:03]} Qb6 {[%emt 0:04:02]} 11. Rd1 {[%emt 0:00:37] White is slightly better.} Bf6 {[%emt 0:00:45] [#]} 12. Nb3 $146 {[%emt 0:01:16]} ({Predecessor:} 12. e3 Bxd4 13. Rxd4 N7f6 14. Nd2 Bd7 15. Nc4 Qc7 16. e4 e5 17. exd5 exd4 18. Bf4 {1-0 (93) Protopopova,A (2244)-Tsepennikova,T (1978) Kazan 2017}) 12... Qc6 {[%emt 0:02:14]} 13. Qxc6 {[%emt 0:00:53]} bxc6 {[%emt 0:00:02]} 14. Na5 {[%emt 0:00:18]} Rb8 {[%emt 0:03:01]} (14... Ne5 $14) 15. Nxc6 $16 {[%emt 0:01:36]} Rb6 {[%emt 0:01:48]} 16. Nb4 {[%emt 0:05:37]} (16. Nxa7 $18 {has better winning chances. Strongly threatening e4.} Bxb2 17. Bxb2 Rxb2 18. Nxc8 (18. Bxd5 exd5 19. Nc3 Nf6 $16) 18... Rxc8 19. a4 (19. Bxd5 exd5 20. a4 Kf8 $16)) 16... Nxb4 {[%emt 0:00:40]} 17. axb4 {[%emt 0:00:02]} Rxb4 {[%emt 0:01:01]} 18. Rxa7 {[%emt 0:00:07]} Nb6 {[%emt 0:01:16]} 19. Ra2 {[%emt 0:02:44]} Nc4 {[%emt 0:00:59]} 20. Nc3 {[%emt 0:00:23]} Rb3 {[%emt 0:00:04][%cal Oc4b2]} 21. Rd3 {[%emt 0:01:12] aiming for Ne4.} (21. Ne4 $5 {[%cal Re4f6]} Bxb2 22. e3 $14) 21... Bb7 {[%emt 0:00:23] White now steadily converts the win.} (21... Rb8 $14) 22. Ne4 {[%emt 0:00:44]} Rb6 {[%emt 0:00:53][%cal Rf6b2]} 23. Nxf6+ {[%emt 0:00:33]} gxf6 {[%emt 0:00:02]} 24. Rc3 {[%emt 0:00:03]} Bxg2 {[%emt 0:00:06]} 25. Kxg2 {[%emt 0:00:03]} Ne5 {[%emt 0:00:12]} 26. Be3 {[%emt 0:00:37]} Rb5 {[%emt 0:00:07]} (26... Rb7 $16 {might work better.} 27. f4 Nd7) 27. b4 {[%emt 0:00:19]} Rd8 {[%emt 0:00:57]} 28. f4 Ng4 {[%emt 0:00:12]} 29. Bc5 {[%emt 0:00:59] h3 is the strong threat.} Rc8 $2 {[%emt 0:00:13]} (29... f5 30. Ra5 Rbb8) 30. h3 $18 {[%emt 0:00:21]} Nh6 {[%emt 0:00:01]} 31. g4 {[%emt 0:00:08]} Kg7 {[%emt 0:00:20]} 32. Ra7 {[%emt 0:00:13] Inhibits Rb7.} Ng8 {[%emt 0:00:10]} 33. Rd3 {[%emt 0:00:11] [#] Hoping for Rdd7.} Rbxc5 {[%emt 0:00:05]} (33... Nh6 {was called for.} 34. e4 Kg6) 34. bxc5 {[%emt 0:00:02]} Rxc5 {[%emt 0:00:00][%mdl 4096] Endgame KRR-KRN} 35. Rdd7 {[%emt 0:00:11]} Nh6 {[%emt 0:00:02]} 36. Kf3 {[%emt 0:00:18] And now h4 would win.} Kg6 $2 {[%emt 0:00:24]} (36... e5 37. Rdc7 Rb5 38. fxe5 Rxe5) 37. e3 {[%emt 0:00:29] [#] Threatens to win with h4.} Rb5 $2 {[%emt 0:00:11]} (37... e5 38. Rdc7 Rb5) 38. h4 {[%emt 0:00:16][%cal Bh3h4,Bh4g5][%mdl 32]} Rc5 {[%emt 0:00:02]} 39. g5 {[%emt 0:00:18]} Nf5 {[%emt 0:00:15]} 40. Rxf7 {[%emt 0:00:13]} fxg5 {[%emt 0:00:22]} 41. hxg5 {[%emt 0:00:07] Weighted Error Value: White=0.29 (precise) /Black=0.81} 1-0

[Event "Czech Open-Rapid 2022"]
[Site "Pardubice"]
[Date "2022.07.21"]
[Round "4.13"]
[White "Seger, Ruediger"]
[Black "Jonsson, Gauti Pall"]
[Result "1/2-1/2"]
[ECO "B01"]
[WhiteElo "2299"]
[BlackElo "2071"]
[Annotator "TA"]
[PlyCount "112"]
[EventDate "2022.07.20"]
[EventType "swiss"]
[EventCountry "CZE"]
[SourceTitle "playchess.com"]
[Source "ChessBase"]
[SourceQuality "1"]
[TimeControl "1200+10"]

{[%evp 10,112,57,57,57,57,56,56,58,51,56,-18,-9,-26,-28,-62,-26,-32,-41,-45,-9,-17,-9,-35,-55,-51,69,66,58,0,0,0,8,0,74,0,8,0,21,0,20,30,21,13,19,10,35,0,256,70,74,74,62,33,86,69,69,0,75,63,55,64,57,56,71,0,0,0,0,0,0,-19,0,0,0,0,0,0,0,0,0,0,0,0,0,0,0,0,0,0,0,0,0,0,0,0,0,0,0,0,0,0,0,0,0]} 1. e4 {[%emt 0:00:02]} d5 {[%emt 0:00:28]} 2. exd5 {[%emt 0:00:20]} Qxd5 {[%emt 0:00:04]} 3. Nc3 {[%emt 0:00:01]} Qd8 {[%emt 0:00:09]} 4. d4 {[%emt 0:00:02]} Nf6 {[%emt 0:00:08]} 5. Nf3 {[%emt 0:00:04]} Bg4 {[%emt 0:00:16]} 6. h3 {[%emt 0:00:08]} Bxf3 {[%emt 0:00:04] B01: Scandinavian Defence.} 7. Qxf3 {[%emt 0:00:01]} c6 {[%emt 0:00:06]} 8. Be3 {[%emt 0:00:19]} e6 {[%emt 0:00:29] White is slightly better.} 9. O-O-O {[%emt 0:00:54]} Bb4 {[%emt 0:00:35] 9...Bb4 scores better than 9...Nbd7.} 10. Bg5 {[%emt 0:03:08]} (10. Ne4 $14) 10... Bxc3 $11 {[%emt 0:01:21]} 11. bxc3 {[%emt 0:02:46][%cal Od4d5]} Nbd7 {[%emt 0:01:37]} 12. Kb1 {[%emt 0:02:20]} Qa5 {[%emt 0:00:28] [#]} 13. Bd2 $146 {[%emt 0:00:16]} ({Predecessor:} 13. Bc1 Nd5 14. Bb2 b5 15. c4 bxc4 16. Bxc4 N7b6 17. Bb3 Qa6 18. Qd3 Qb7 19. c4 {½-½ (54) Moore,G (2011)-Kramaley,D (1819) Basingstoke 2018}) 13... O-O {[%emt 0:01:33]} 14. Ka1 {[%emt 0:00:08]} Qd5 {[%emt 0:02:26]} 15. Qxd5 {[%emt 0:00:19]} cxd5 {[%emt 0:00:03]} 16. c4 {[%emt 0:02:40]} Ne4 {[%emt 0:00:05]} 17. Be1 {[%emt 0:00:09]} b6 {[%emt 0:01:10] Against c5} (17... dxc4 $1 $15 18. f3 Nef6) 18. cxd5 $14 {[%emt 0:01:22]} exd5 {[%emt 0:00:02]} 19. c4 {[%emt 0:01:15]} (19. f3 $14 Ng5 20. Ba6) 19... Rac8 $11 {[%emt 0:01:25]} 20. Bd3 {[%emt 0:02:39]} Rfe8 {[%emt 0:00:34]} 21. cxd5 {[%emt 0:01:36]} Nef6 {[%emt 0:01:25]} (21... Ndf6 $11 {keeps the balance.}) 22. Bd2 {[%emt 0:00:10]} ({Better is} 22. d6 $16) 22... Nxd5 {[%emt 0:00:28]} 23. Rc1 {[%emt 0:00:02]} N7f6 {[%emt 0:00:24]} 24. g4 {[%emt 0:00:54]} h6 {[%emt 0:00:02]} 25. Rxc8 {[%emt 0:00:26]} Rxc8 {[%emt 0:00:01]} 26. Rc1 {[%emt 0:00:01]} Re8 {[%emt 0:01:03]} 27. f3 {[%emt 0:00:43]} Kf8 {[%emt 0:00:57]} 28. h4 {[%emt 0:00:11]} Ne3 $2 {[%emt 0:00:21][%mdl 8192]} (28... h5 $11 {and Black is okay.}) 29. Rc7 $2 {[%emt 0:00:26]} (29. Bb5 $18 Ned5 30. Bxe8 Nxe8 31. Rc8) 29... a5 $14 {[%emt 0:00:36][%cal Oe8d8]} 30. Rb7 {[%emt 0:00:17]} Nfd5 {[%emt 0:00:43]} 31. Be4 {[%emt 0:00:10]} Re7 {[%emt 0:00:27]} (31... Rc8 $14) 32. Rb8+ $16 {[%emt 0:00:18]} Re8 {[%emt 0:00:01]} 33. Rb7 {[%emt 0:00:36]} Re7 {[%emt 0:00:01] [#]} 34. Bxe3 $1 {[%emt 0:00:02]} Nxe3 {[%emt 0:01:21]} 35. Rxb6 {[%emt 0:00:01][%mdl 4096] Endgame KRB-KRN} Rd7 {[%emt 0:00:28]} 36. Rb8+ {[%emt 0:00:14]} Ke7 {[%emt 0:00:04]} 37. Bc6 {[%emt 0:00:01] White is more active.} (37. Rb3 $16 Ng2 38. Rb5) 37... Rxd4 $11 {[%emt 0:00:26] The position is equal.} 38. Re8+ {[%emt 0:00:24]} Kd6 {[%emt 0:00:01]} 39. Rxe3 {[%emt 0:00:02] [#] Strongly threatening Be4.} Kxc6 {[%emt 0:00:01] KR-KR} 40. Kb2 {[%emt 0:00:05]} h5 {[%emt 0:00:20]} 41. gxh5 {[%emt 0:00:29]} Rxh4 {[%emt 0:00:02]} 42. Re5 {[%emt 0:00:01]} Kb6 {[%emt 0:00:11]} 43. Rg5 {[%emt 0:00:01]} f6 {[%emt 0:00:28]} 44. Rxg7 {[%emt 0:00:32]} Rxh5 {[%emt 0:00:02]} 45. Rd7 {[%emt 0:00:03]} Rf5 {[%emt 0:00:13]} 46. Rd3 {[%emt 0:00:01]} Rf4 {[%emt 0:00:01]} 47. Kb3 {[%emt 0:00:55]} a4+ {[%emt 0:00:32]} 48. Kc3 {[%emt 0:00:12]} Kb5 {[%emt 0:00:12]} 49. a3 {[%emt 0:00:04]} Kc5 {[%emt 0:00:09]} 50. Kd2 {[%emt 0:00:07]} Rd4 {[%emt 0:00:38] ( -> ...Kc4)} 51. Ke3 {[%emt 0:00:07]} Rxd3+ {[%emt 0:00:08]} 52. Kxd3 {[%emt 0:00:01]} f5 {[%emt 0:00:06]} (52... Kd5 $5) 53. Kc3 $1 {[%emt 0:00:09]} f4 {[%emt 0:00:21]} 54. Kd3 {[%emt 0:00:03]} Kd5 {[%emt 0:00:01]} 55. Kc3 {[%emt 0:00:04]} Kc5 {[%emt 0:00:01]} 56. Kd3 {[%emt 0:00:01]} Kd5 {Weighted Error Value: White=0.18 (very precise) /Black=0.24 (precise)} 1/2-1/2

[Event "Czech Open-Rapid 2022"]
[Site "Pardubice"]
[Date "2022.07.21"]
[Round "4.14"]
[White "Laith, Kasib"]
[Black "Strebkovs, Andrejs"]
[Result "0-1"]
[ECO "B12"]
[WhiteElo "2079"]
[BlackElo "2283"]
[Annotator "TA"]
[PlyCount "94"]
[EventDate "2022.07.20"]
[EventType "swiss"]
[EventCountry "CZE"]
[SourceTitle "playchess.com"]
[Source "ChessBase"]
[SourceQuality "1"]
[TimeControl "1200+10"]

{[%evp 11,94,51,63,51,59,31,34,31,41,0,47,18,47,22,2,0,7,8,14,-44,-41,-41,-6,0,101,0,0,-58,-51,-154,-141,-138,-152,-246,-203,-235,-191,-225,-152,-196,-201,-204,-210,-347,-344,-343,-327,-329,-316,-303,-303,-351,-346,-339,-324,-389,-391,-447,-378,-463,-448,-580,-587,-581,-581,-579,-576,-558,-547,-634,-652,-633,-609,-587,-504,-504,-504,-500,-448,-803,-786,-1004,-964,-2628,-1806]} 1. e4 {[%emt 0:00:13]} c6 {[%emt 0:00:10]} 2. d4 {[%emt 0:00:09]} g6 {[%emt 0:00:04]} 3. c4 {[%emt 0:00:13]} d6 {[%emt 0:00:52]} 4. Nf3 {[%emt 0:00:10]} Bg7 {[%emt 0:00:12]} 5. Be2 {[%emt 0:00:56]} Nf6 {[%emt 0:00:13]} 6. Nc3 {[%emt 0:00:07]} O-O {[%emt 0:00:13][%cal Oe7e5]} 7. Be3 {[%emt 0:00:13] E91: King's Indian: Classical: 6 Be2, unusual replies including 6...c5 and 6...Bg4.} a6 {[%emt 0:00:53]} 8. a4 {[%emt 0:01:00]} a5 {[%emt 0:00:30]} 9. O-O {[%emt 0:00:22] White is slightly better.} Na6 10. Qd2 {[#]} Qe8 $146 {[%emt 0:02:29]} (10... Ng4 $11) ({Predecessor:} 10... Ng4 11. Bg5 h6 12. Bh4 g5 13. Bg3 f5 14. exf5 Bxf5 15. h4 e5 16. hxg5 hxg5 {1-0 (40) Boino,C (2180)-Mirski,M (2011) Krakow 2018}) 11. Rfe1 {[%emt 0:03:42]} Ng4 {[%emt 0:03:15]} 12. Bg5 {[%emt 0:00:03]} f6 {[%emt 0:00:31]} 13. Bf4 {[%emt 0:00:43]} e5 $1 {[%emt 0:00:21]} 14. Bg3 {[%emt 0:00:13]} Nh6 {[%emt 0:02:24]} 15. Red1 {[%emt 0:01:59]} ({Better is} 15. c5 $11) 15... Nf7 $15 {[%emt 0:00:11]} 16. Re1 {[%emt 0:03:45]} f5 {[%emt 0:00:34]} 17. exf5 $1 {[%emt 0:00:28]} gxf5 {[%emt 0:00:08] [#]} (17... Bxf5 $11 {keeps the balance.} 18. Bd3 Nb4) 18. dxe5 {[%emt 0:00:01]} (18. c5 $1 $16) 18... dxe5 $11 {[%emt 0:00:05][%cal Bd6e5,Be5e4,Be4e3][%mdl 32]} 19. Bh4 {[%emt 0:00:26]} (19. c5 $11) 19... Nc5 {[%emt 0:00:44] Threatens to win with ...Nb3.} 20. Qc2 {[%emt 0:00:19] Inhibits Nb3. White is on the road to losing.} (20. Rad1 $1 $15) 20... e4 $17 {[%emt 0:00:36]} 21. Nd2 {[%emt 0:01:48]} Ne5 {[%emt 0:00:24]} 22. f4 {[%emt 0:00:22]} (22. Bg5 $17 {was necessary.}) 22... Ng6 {[%emt 0:02:26]} 23. Bh5 {[%emt 0:00:11]} Qf7 {[%emt 0:00:34]} 24. Rf1 {[%emt 0:01:57]} e3 {[%emt 0:00:58] Prevents Bf2.} 25. Nf3 {[%emt 0:00:07]} Qxc4 {[%emt 0:00:15]} 26. Bxg6 {[%emt 0:00:57]} hxg6 {[%emt 0:00:09]} 27. Be7 {[%emt 0:00:22]} (27. Qe2 $142 Qxe2 28. Nxe2) 27... Re8 $19 {[%emt 0:00:13][%cal Bf8e8,Be8d8,Bd8d3][%mdl 32]} 28. Bxc5 {[%emt 0:00:11]} Qxc5 {[%emt 0:00:33]} 29. Kh1 {[%emt 0:00:02]} b6 {[%emt 0:00:38]} 30. Rfe1 {[%emt 0:01:15]} Ba6 {[%emt 0:00:11]} 31. Rad1 {[%emt 0:00:19]} Rad8 {[%emt 0:00:17] Prevents Rd7.} 32. Rxd8 {[%emt 0:01:11]} Rxd8 {[%emt 0:00:03]} 33. Qc1 {[%emt 0:00:10]} Rd3 {[%emt 0:00:35]} 34. Ne2 {[%emt 0:01:07]} Qd6 {[%emt 0:01:03]} 35. h3 {[%emt 0:00:07] [#]} Rd2 $1 {[%emt 0:00:30][%mdl 512] Black is clearly winning.} 36. Nc3 {[%emt 0:00:36] [#]} (36. Neg1 Bxb2) 36... Qxf4 {[%emt 0:01:03]} 37. Rxe3 {[%emt 0:00:11]} Qxe3 {[%emt 0:00:18]} 38. Qxd2 {[%emt 0:00:01]} Qxd2 {[%emt 0:00:13]} 39. Nxd2 {[%emt 0:00:00][%mdl 4096] Endgame KBB-KNN} Bd3 {[%emt 0:00:08]} 40. Kg1 {[%emt 0:00:38]} Bd4+ {[%emt 0:00:10]} 41. Kh2 {[%emt 0:00:01]} Kf7 {[%emt 0:00:23]} 42. Kg3 {[%emt 0:00:06]} Kf6 {[%emt 0:00:12]} 43. Kf3 {[%emt 0:00:06]} Ke5 {[%emt 0:00:14]} 44. Nd1 {[%emt 0:00:17]} b5 {[%emt 0:00:22]} 45. axb5 {[%emt 0:00:24]} (45. b3 $142) 45... cxb5 {[%emt 0:00:07]} 46. Nc3 {[%emt 0:00:07]} a4 {[%emt 0:00:36] Hoping for ...Bxc3.} 47. Ndb1 {[%emt 0:00:07]} Bxb1 {[%emt 0:00:08] Weighted Error Value: White=0.53/Black=0.17 (very precise)} 0-1

[Event "Czech Open-Rapid 2022"]
[Site "Pardubice"]
[Date "2022.07.21"]
[Round "4.15"]
[White "Freisler, Pavel"]
[Black "Meszaros, Ludek"]
[Result "1-0"]
[ECO "E18"]
[WhiteElo "2256"]
[BlackElo "2049"]
[Annotator "TA"]
[PlyCount "63"]
[EventDate "2022.07.20"]
[EventType "swiss"]
[EventCountry "CZE"]
[SourceTitle "playchess.com"]
[Source "ChessBase"]
[SourceQuality "1"]
[TimeControl "1200+10"]

{[%evp 18,63,33,27,27,6,14,23,33,33,34,36,34,0,0,-20,22,4,8,0,0,0,0,-20,-27,-69,8,0,0,0,0,0,0,0,116,0,366,370,624,620,604,374,459,458,1395,1362,29998,29999]} 1. d4 {[%emt 0:00:03]} Nf6 {[%emt 0:00:04]} 2. Nf3 {[%emt 0:00:01]} b6 {[%emt 0:00:04]} 3. g3 {[%emt 0:00:26]} Bb7 {[%emt 0:00:02]} 4. Bg2 {[%emt 0:00:02]} e6 {[%emt 0:00:03]} 5. c4 {[%emt 0:00:05]} Be7 {[%emt 0:00:07]} 6. Nc3 {[%emt 0:00:08]} O-O {[%emt 0:00:04]} 7. O-O {[%emt 0:00:41]} Ne4 {[%emt 0:00:02]} 8. Bd2 {[%emt 0:00:08]} Nxc3 {[%emt 0:01:12]} 9. Bxc3 {[%emt 0:00:02]} Be4 {[%emt 0:00:48]} 10. d5 {[%emt 0:02:50]} Bf6 {[%emt 0:00:27] Against Qd4. E18: Queen's Indian: Old Main Line (4 g3 Bb7 5 Bg2 Be7 6 0-0 0-0 7 Nc3).} 11. Nd4 {[%emt 0:00:19]} Bxg2 {[%emt 0:00:06]} 12. Kxg2 {[%emt 0:00:00]} c5 {[%emt 0:01:08] White has an edge.} 13. Nb5 {[%emt 0:00:33]} Bxc3 {[%emt 0:00:16]} 14. Nxc3 {[%emt 0:00:02] [#]} e5 $146 {[%emt 0:04:18]} ({Predecessor:} 14... d6 15. f4 Qe7 16. Qd3 Na6 17. e4 Rad8 18. Rae1 e5 19. fxe5 Qxe5 20. Rf5 Qe7 21. e5 g6 22. Ne4 Nb4 23. Qd2 dxe5 24. Nf6+ Kg7 25. Rh5 Qc7 26. Rf1 {1-0 (26) Sahovic,D (2420)-Diaz Diaz,J Vrnjacka Banja 1976}) 15. d6 {[%emt 0:01:35]} Nc6 {[%emt 0:00:26]} 16. Qd5 {[%emt 0:00:09]} Re8 {[%emt 0:02:13]} 17. Rad1 {[%emt 0:03:06]} Re6 {[%emt 0:04:43]} 18. a3 {[%emt 0:03:38]} a6 {[%emt 0:02:08]} 19. Rd3 {[%emt 0:00:42]} Rb8 {[%emt 0:01:19]} 20. f4 {[%emt 0:01:08]} exf4 {[%emt 0:00:28]} 21. Rxf4 {[%emt 0:00:11]} Rf6 {[%emt 0:01:14]} (21... Qf8 $15) 22. Rdf3 {[%emt 0:00:24] [#] aiming for Rxf6.} Rxf4 {[%emt 0:00:22]} 23. Rxf4 {[%emt 0:00:01]} Qe8 {[%emt 0:00:10]} 24. Re4 {[%emt 0:02:07]} Qf8 {[%emt 0:00:17]} 25. Na4 {[%emt 0:00:44][%cal Ob2b4]} Nd4 {[%emt 0:00:31] [#]} (25... g6 $11) 26. Re7 {[%emt 0:00:24] White is more active.} ({White must play} 26. b4 $1 $16 {[%cal Rb4c5]} Ne6 27. bxc5 bxc5 28. Nxc5) 26... Ne6 {[%emt 0:00:45][%mdl 8192]} (26... Nc6 $1 $11 {and Black has nothing to worry.} 27. Rxd7 Qe8 28. Qxc6 Qxe2+ 29. Kg1 (29. Kh3 Qe6+ 30. Kg2 Qe2+ 31. Kg1 Qe1+ 32. Kg2 Qe2+ $11) 29... Qe1+ 30. Kg2 Qe2+ 31. Kh3 Qh5+ 32. Kg2 Qe2+) 27. Rxd7 $18 {[%emt 0:00:10]} Qc8 $2 {[%emt 0:00:38]} (27... h6 28. Re7 a5) 28. Re7 {[%emt 0:00:23][%cal Oa4b6]} Qd8 {[%emt 0:00:26]} 29. e4 {[%emt 0:00:37] And now b4 would win.} h6 {[%emt 0:00:08]} 30. e5 {[%emt 0:00:03]} b5 {[%emt 0:00:01]} (30... Qf8 $142 31. b4 h5) 31. Nxc5 {[%emt 0:00:12]} Nxc5 {[%emt 0:00:08]} 32. Qxf7+ {Weighted Error Value: White=0.28 (precise) /Black=0.75} 1-0

[Event "Czech Open-Rapid 2022"]
[Site "Pardubice"]
[Date "2022.07.21"]
[Round "4.16"]
[White "Kotva, Milan"]
[Black "Stocek, Jiri"]
[Result "0-1"]
[ECO "B40"]
[WhiteElo "1833"]
[BlackElo "2548"]
[Annotator "TA"]
[PlyCount "57"]
[EventDate "2022.07.20"]
[EventType "swiss"]
[EventCountry "CZE"]
[SourceTitle "playchess.com"]
[Source "ChessBase"]
[SourceQuality "1"]
[TimeControl "1200+10"]

{[%evp 13,57,0,0,-21,-28,-21,-9,-44,-37,-47,-36,-87,27,25,32,20,35,35,25,34,21,-14,0,0,7,6,10,0,0,-3,0,-58,-74,-248,-201,-295,-214,-640,-625,-844,-844,-966,-933,-1325,-1141,-1528]} 1. e4 c5 2. Nf3 e6 3. d4 cxd4 4. Nxd4 Nf6 5. Nc3 Nc6 6. Nxc6 bxc6 7. Bd3 d5 8. e5 {B45: Sicilian Four Knights.} Nd7 9. f4 Bc5 10. Qe2 {[#] The position is equal.} Rb8 $146 ({Predecessor:} 10... O-O 11. Be3 d4 12. Bxd4 Bxd4 13. Qd2 Nc5 14. O-O-O Nxd3+ 15. Qxd3 c5 16. Ne2 Qb6 {0-1 (57) Kurmanbekov,A-Akbarhanov,N Karakol 2017}) 11. b3 Bd4 12. Bd2 {[#]} ({White should try} 12. Qd2 $15) 12... O-O {[#]} (12... Nc5 $1 $17 13. O-O-O O-O) 13. Bxh7+ $1 $11 Kxh7 14. Qd3+ Kg8 15. Qxd4 c5 16. Qf2 Ba6 17. Ne2 (17. Qg3 $5 {[%cal Rf4f5]}) 17... f6 $36 {[%mdl 2048] Black has the initiative.} 18. exf6 Qxf6 19. O-O Qg6 20. Rac1 e5 {[%cal Be6e5,Be5e4][%mdl 32]} 21. Rfe1 e4 22. Nc3 ({White should play} 22. Qg3 $11 Qf7 23. c3) 22... Bb7 $15 {[%mdl 1024] Black has compensation.} 23. Qf1 $2 {Now White is beyond hope.} (23. Qg3 $17 Qe6 24. Nd1) 23... d4 24. Nd1 (24. Qf2 {might work better.}) 24... Rf7 {Hoping for ...Ne5.} 25. c3 $2 (25. Qf2) 25... Ne5 $19 {Black is clearly winning.} 26. Re2 Rbf8 {Strongly threatening ...Nf3+.} 27. cxd4 cxd4 {...Nf3+ is the strong threat.} 28. Rc5 Nd3 {White must now prevent ...e3.} 29. Ra5 {Weighted Error Value: White=0.80/Black=0.31} 0-1

[Event "Czech Open-Rapid 2022"]
[Site "Pardubice"]
[Date "2022.07.21"]
[Round "4.17"]
[White "Pacl, Vaclav"]
[Black "Mladek, Richard"]
[Result "0-1"]
[ECO "A06"]
[WhiteElo "2036"]
[BlackElo "2330"]
[Annotator "TA"]
[PlyCount "68"]
[EventDate "2022.07.20"]
[EventType "swiss"]
[EventCountry "CZE"]
[SourceTitle "playchess.com"]
[Source "ChessBase"]
[SourceQuality "1"]
[TimeControl "1200+10"]

{[%evp 9,68,16,17,0,2,-8,6,-29,0,0,31,29,34,24,27,18,32,29,25,28,29,21,30,3,41,21,28,20,37,27,49,45,47,18,22,0,6,4,6,0,0,0,0,0,0,0,18,0,0,0,0,0,0,-85,-96,-144,-160,-145,-154,-147,-152]} 1. Nf3 d5 2. e3 e6 3. c4 Nf6 4. b3 Be7 5. Bb2 O-O 6. g3 {A13: English Opening: 1...e6.} a5 {[%cal Ba7a5,Ba5a4][%mdl 32] [#]} 7. a3 $146 ({Predecessor:} 7. Nc3 c6 8. Bg2 b6 9. O-O Nbd7 10. Rc1 Ba6 11. d3 b5 12. cxb5 cxb5 13. Nd4 Qb6 {0-1 (73) Zhu,B (1959)-Cui,C (1692) Quebec 2018}) 7... a4 8. cxd5 {The position is equal.} exd5 ({But not} 8... Qxd5 9. b4 $11) 9. b4 $1 Nbd7 10. Bg2 Nb6 11. d3 c6 12. O-O Re8 13. Bd4 Bg4 14. Qc2 Nfd7 15. Nc3 {[%cal Bb1c3,Bc3e2,Be2d4][%mdl 32]} Bf6 16. Ne2 Bxd4 17. Nexd4 Qf6 18. Rac1 Rad8 19. Rfe1 h6 20. h3 Bh5 21. Nh2 Rc8 22. Ne2 Bxe2 23. Qxe2 c5 24. bxc5 Nxc5 25. Nf3 Nb3 26. Rxc8 Rxc8 27. Rb1 Qc3 28. Ne1 Rc5 29. e4 Qe5 30. Nf3 Qe7 31. Qe1 {[#]} (31. Qb2 $11 {remains equal.}) 31... d4 $1 $17 {Black is more active.} 32. Qb4 (32. Kh2 $142 Rc6 33. Nd2) 32... Rc1+ {Black is clearly better.} 33. Rxc1 Qxb4 34. axb4 Nxc1 {Weighted Error Value: White=0.14 (very precise) /Black=0.06 (flawless)} 0-1